[Event "Titled Tuesday Blitz March 01 Early 2022"]
[White "Bogumil, Tatiana"]
[Black "Rengifo Blancas, Renzo Jhonathan"]
[WhiteFideId "4110579"]
[BlackFideId "3807185"]
[WhiteElo "1862"]
[BlackElo "2058"]
[Result "0-1"]
[Round "02"]
[TimeControl "180+1"]
[Date "2022.03.01"]
[WhiteClock "0:01:16"]
[BlackClock "0:00:21"]

1. Nf3 {[%clk 0:03:00]}  Nf6 {[%clk 0:02:35]} 2. c4 {[%clk 0:02:57]}  c6 {[%clk 0:02:32]} 3. b3 {[%clk 0:02:57]}  d5 {[%clk 0:02:33]} 4. Bb2 {[%clk 0:02:57]}  g6 {[%clk 0:02:34]} 5. g3 {[%clk 0:02:57]}  Bg7 {[%clk 0:02:34]} 6. Bg2 {[%clk 0:02:57]}  O-O {[%clk 0:02:35]} 7. O-O {[%clk 0:02:57]}  Re8 {[%clk 0:02:34]} 8. d3 {[%clk 0:02:55]}  a5 {[%clk 0:02:33]} 9. a3 {[%clk 0:02:54]}  Nbd7 {[%clk 0:02:32]} 10. Nbd2 {[%clk 0:02:53]}  e5 {[%clk 0:02:31]} 11. e4 {[%clk 0:02:44]}  d4 {[%clk 0:02:29]} 12. b4 {[%clk 0:02:35]}  axb4 {[%clk 0:02:29]} 13. axb4 {[%clk 0:02:34]}  Rxa1 {[%clk 0:02:30]} 14. Qxa1 {[%clk 0:02:33]}  b5 {[%clk 0:02:20]} 15. c5 {[%clk 0:02:24]}  Qc7 {[%clk 0:02:05]} 16. Qa2 {[%clk 0:02:14]}  Nf8 {[%clk 0:02:04]} 17. Ra1 {[%clk 0:02:12]}  Be6 {[%clk 0:02:04]} 18. Qa7 {[%clk 0:02:10]}  Qxa7 {[%clk 0:01:53]} 19. Rxa7 {[%clk 0:02:10]}  N6d7 {[%clk 0:01:44]} 20. Ng5 {[%clk 0:02:02]}  Nb8 {[%clk 0:01:27]} 21. Nxe6 {[%clk 0:01:57]}  Nxe6 {[%clk 0:01:27]} 22. h4 {[%clk 0:01:51]}  Bf8 {[%clk 0:01:20]} 23. Nb3 {[%clk 0:01:48]}  Re7 {[%clk 0:01:12]} 24. Ra8 {[%clk 0:01:38]}  Re8 {[%clk 0:01:07]} 25. Bc1 {[%clk 0:01:37]}  f6 {[%clk 0:01:01]} 26. Bh3 {[%clk 0:01:36]}  Kf7 {[%clk 0:00:54]} 27. f4 {[%clk 0:01:29]}  Be7 {[%clk 0:00:44]} 28. f5 {[%clk 0:01:22]}  Nc7 {[%clk 0:00:25]} 29. fxg6+ {[%clk 0:01:16]}  hxg6 {[%clk 0:00:22]} 30. Na5 {[%clk 0:01:16]}  Nxa8 {[%clk 0:00:21]} 0-1


[Site "https://www.chess.com"]

[Event "Titled Tuesday Blitz March 01 Early 2022"]
[White "Budrewicz, Krzysztof"]
[Black "Panesar Vedant"]
[WhiteFideId "1127950"]
[BlackFideId "35033018"]
[WhiteElo "2248"]
[BlackElo "1971"]
[Result "1-0"]
[Round "02"]
[TimeControl "180+1"]
[Date "2022.03.01"]
[WhiteClock "0:01:15"]
[BlackClock "0:00:16"]

1. d4 {[%clk 0:03:00]}  Nf6 {[%clk 0:02:57]} 2. c4 {[%clk 0:03:00]}  e6 {[%clk 0:02:56]} 3. Nf3 {[%clk 0:02:59]}  d5 {[%clk 0:02:55]} 4. Nc3 {[%clk 0:02:59]}  a6 {[%clk 0:02:52]} 5. a4 {[%clk 0:02:55]}  dxc4 {[%clk 0:02:49]} 6. e4 {[%clk 0:02:54]}  Bb4 {[%clk 0:02:47]} 7. Bg5 {[%clk 0:02:51]}  h6 {[%clk 0:02:39]} 8. Bxf6 {[%clk 0:02:48]}  Qxf6 {[%clk 0:02:40]} 9. Bxc4 {[%clk 0:02:48]}  c5 {[%clk 0:02:40]} 10. Rc1 {[%clk 0:02:45]}  O-O {[%clk 0:02:35]} 11. O-O {[%clk 0:02:41]}  cxd4 {[%clk 0:02:32]} 12. Qxd4 {[%clk 0:02:39]}  Qxd4 {[%clk 0:02:19]} 13. Nxd4 {[%clk 0:02:39]}  Bd7 {[%clk 0:02:09]} 14. Rfd1 {[%clk 0:02:37]}  Bxc3 {[%clk 0:02:07]} 15. Rxc3 {[%clk 0:02:33]}  Bxa4 {[%clk 0:02:08]} 16. b3 {[%clk 0:02:32]}  Bc6 {[%clk 0:01:56]} 17. f3 {[%clk 0:02:27]}  g6 {[%clk 0:01:53]} 18. b4 {[%clk 0:02:05]}  Rd8 {[%clk 0:01:31]} 19. Rcd3 {[%clk 0:02:04]}  Kg7 {[%clk 0:00:59]} 20. Nxe6+ {[%clk 0:01:59]}  fxe6 {[%clk 0:00:57]} 21. Rxd8 {[%clk 0:01:59]}  Ba4 {[%clk 0:00:54]} 22. R1d2 {[%clk 0:01:52]}  b6 {[%clk 0:00:48]} 23. Rc8 {[%clk 0:01:46]}  Bb5 {[%clk 0:00:39]} 24. Bxb5 {[%clk 0:01:34]}  axb5 {[%clk 0:00:40]} 25. Kf2 {[%clk 0:01:35]}  Kf7 {[%clk 0:00:37]} 26. Kg3 {[%clk 0:01:35]}  Ke7 {[%clk 0:00:28]} 27. e5 {[%clk 0:01:24]}  g5 {[%clk 0:00:20]} 28. h3 {[%clk 0:01:21]}  h5 {[%clk 0:00:21]} 29. h4 {[%clk 0:01:19]}  gxh4+ {[%clk 0:00:20]} 30. Kxh4 {[%clk 0:01:20]}  Kf7 {[%clk 0:00:17]} 31. Rdd8 {[%clk 0:01:19]}  Ra4 {[%clk 0:00:17]} 32. Rxb8 {[%clk 0:01:18]}  Rxb4+ {[%clk 0:00:18]} 33. Kxh5 {[%clk 0:01:17]}  Ke7 {[%clk 0:00:18]} 34. Rg8 {[%clk 0:01:15]}  Kf7 {[%clk 0:00:17]} 35. Rgc8 {[%clk 0:01:15]}  Rc4 {[%clk 0:00:16]} 36. Rb7+ {[%clk 0:01:15]} 1-0


[Site "https://www.chess.com"]

[Event "Titled Tuesday Blitz March 01 Early 2022"]
[White "Coto Mederos, Michel"]
[Black "Kohler, Aran"]
[WhiteFideId "3508528"]
[BlackFideId "1002856"]
[WhiteElo "2427"]
[BlackElo "2253"]
[Result "1-0"]
[Round "02"]
[TimeControl "180+1"]
[Date "2022.03.01"]
[WhiteClock "0:00:35"]
[BlackClock "0:00:06"]

1. d4 {[%clk 0:03:00]}  d5 {[%clk 0:02:59]} 2. c4 {[%clk 0:02:59]}  c6 {[%clk 0:02:59]} 3. Nf3 {[%clk 0:02:59]}  Nf6 {[%clk 0:02:59]} 4. Nc3 {[%clk 0:02:59]}  e6 {[%clk 0:02:59]} 5. cxd5 {[%clk 0:02:58]}  exd5 {[%clk 0:02:59]} 6. Bg5 {[%clk 0:02:58]}  Be7 {[%clk 0:02:58]} 7. e3 {[%clk 0:02:59]}  h6 {[%clk 0:02:58]} 8. Bh4 {[%clk 0:02:54]}  O-O {[%clk 0:02:52]} 9. Bd3 {[%clk 0:02:54]}  Ne4 {[%clk 0:02:45]} 10. Bxe7 {[%clk 0:02:48]}  Qxe7 {[%clk 0:02:45]} 11. Qc2 {[%clk 0:02:48]}  f5 {[%clk 0:02:39]} 12. Ne5 {[%clk 0:02:41]}  Qe8 {[%clk 0:02:29]} 13. f3 {[%clk 0:02:24]}  Nd6 {[%clk 0:02:27]} 14. O-O {[%clk 0:02:21]}  Nd7 {[%clk 0:02:19]} 15. f4 {[%clk 0:01:58]}  Ne4 {[%clk 0:02:11]} 16. Nxe4 {[%clk 0:01:54]}  fxe4 {[%clk 0:02:10]} 17. Be2 {[%clk 0:01:54]}  Nxe5 {[%clk 0:02:09]} 18. fxe5 {[%clk 0:01:49]}  Rxf1+ {[%clk 0:02:08]} 19. Rxf1 {[%clk 0:01:48]}  Qe7 {[%clk 0:01:49]} 20. Qc3 {[%clk 0:01:32]}  Be6 {[%clk 0:01:46]} 21. b4 {[%clk 0:01:23]}  Rf8 {[%clk 0:01:43]} 22. b5 {[%clk 0:01:20]}  Rxf1+ {[%clk 0:01:40]} 23. Bxf1 {[%clk 0:01:21]}  cxb5 {[%clk 0:01:28]} 24. Bxb5 {[%clk 0:01:22]}  a6 {[%clk 0:01:27]} 25. Be2 {[%clk 0:01:19]}  Kh7 {[%clk 0:01:19]} 26. Bd1 {[%clk 0:01:11]}  Qd7 {[%clk 0:01:08]} 27. Qc5 {[%clk 0:01:06]}  Qb5 {[%clk 0:01:00]} 28. Qxb5 {[%clk 0:01:01]}  axb5 {[%clk 0:01:00]} 29. a3 {[%clk 0:01:00]}  Bd7 {[%clk 0:00:51]} 30. Kf2 {[%clk 0:00:59]}  Kg6 {[%clk 0:00:49]} 31. Ke1 {[%clk 0:01:00]}  Kf7 {[%clk 0:00:41]} 32. Kd2 {[%clk 0:01:00]}  g6 {[%clk 0:00:32]} 33. Kc3 {[%clk 0:00:59]}  Bc6 {[%clk 0:00:19]} 34. Kb4 {[%clk 0:00:57]}  h5 {[%clk 0:00:19]} 35. Be2 {[%clk 0:00:49]}  Bd7 {[%clk 0:00:14]} 36. Kc5 {[%clk 0:00:47]}  Be6 {[%clk 0:00:11]} 37. Kb6 {[%clk 0:00:41]}  Bg4 {[%clk 0:00:07]} 38. Bxg4 {[%clk 0:00:34]}  hxg4 {[%clk 0:00:06]} 39. Kxb5 {[%clk 0:00:33]}  g3 {[%clk 0:00:06]} 40. hxg3 {[%clk 0:00:32]}  Ke6 {[%clk 0:00:06]} 41. Kb6 {[%clk 0:00:32]}  Kf5 {[%clk 0:00:06]} 42. Kxb7 {[%clk 0:00:32]}  Kg4 {[%clk 0:00:07]} 43. e6 {[%clk 0:00:32]}  Kxg3 {[%clk 0:00:07]} 44. e7 {[%clk 0:00:33]}  Kxg2 {[%clk 0:00:07]} 45. e8=Q {[%clk 0:00:34]}  g5 {[%clk 0:00:07]} 46. Qg6 {[%clk 0:00:34]}  Kh1 {[%clk 0:00:05]} 47. Qxg5 {[%clk 0:00:33]}  Kh2 {[%clk 0:00:04]} 48. Qg4 {[%clk 0:00:33]}  Kh1 {[%clk 0:00:05]} 49. Kc6 {[%clk 0:00:33]}  Kh2 {[%clk 0:00:04]} 50. Kd6 {[%clk 0:00:34]}  Kh1 {[%clk 0:00:05]} 51. Ke5 {[%clk 0:00:35]}  Kh2 {[%clk 0:00:05]} 52. Kf4 {[%clk 0:00:36]}  Kh1 {[%clk 0:00:06]} 53. Kg3 {[%clk 0:00:34]}  Kg1 {[%clk 0:00:06]} 54. Qd1# {[%clk 0:00:35]} 1-0


[Site "https://www.chess.com"]

[Event "Titled Tuesday Blitz March 01 Early 2022"]
[White "Csonka, Balazs"]
[Black "Van Foreest, Jorden"]
[WhiteFideId "742910"]
[BlackFideId "1039784"]
[WhiteElo "2657"]
[BlackElo "3001"]
[Result "0-1"]
[Round "02"]
[TimeControl "180+1"]
[Date "2022.03.01"]
[WhiteClock "0:00:03"]
[BlackClock "0:00:11"]

1. e4 {[%clk 0:03:00]}  c6 {[%clk 0:02:59]} 2. d4 {[%clk 0:02:55]}  d5 {[%clk 0:03:00]} 3. Nc3 {[%clk 0:02:55]}  dxe4 {[%clk 0:02:59]} 4. Nxe4 {[%clk 0:02:56]}  Nf6 {[%clk 0:02:56]} 5. Nxf6+ {[%clk 0:02:56]}  exf6 {[%clk 0:02:57]} 6. c3 {[%clk 0:02:55]}  Bd6 {[%clk 0:02:55]} 7. Bd3 {[%clk 0:02:55]}  O-O {[%clk 0:02:56]} 8. Ne2 {[%clk 0:02:55]}  c5 {[%clk 0:02:52]} 9. O-O {[%clk 0:02:36]}  Nc6 {[%clk 0:02:52]} 10. Be3 {[%clk 0:02:36]}  cxd4 {[%clk 0:02:51]} 11. Nxd4 {[%clk 0:02:37]}  Ne5 {[%clk 0:02:51]} 12. Be2 {[%clk 0:02:37]}  a6 {[%clk 0:02:51]} 13. h3 {[%clk 0:02:21]}  Qc7 {[%clk 0:02:50]} 14. Nf3 {[%clk 0:02:00]}  Ng6 {[%clk 0:02:48]} 15. Qc2 {[%clk 0:01:47]}  Bf4 {[%clk 0:02:35]} 16. Bd4 {[%clk 0:01:43]}  Bd7 {[%clk 0:02:31]} 17. Rfe1 {[%clk 0:01:40]}  Bc6 {[%clk 0:02:30]} 18. Qf5 {[%clk 0:01:22]}  Rad8 {[%clk 0:02:20]} 19. Rad1 {[%clk 0:01:06]}  Rd5 {[%clk 0:02:14]} 20. Qc2 {[%clk 0:00:50]}  Rdd8 {[%clk 0:01:59]} 21. a4 {[%clk 0:00:38]}  Rfe8 {[%clk 0:01:59]} 22. b4 {[%clk 0:00:35]}  Bd6 {[%clk 0:01:51]} 23. b5 {[%clk 0:00:29]}  Be4 {[%clk 0:01:49]} 24. Qb2 {[%clk 0:00:25]}  Nf4 {[%clk 0:01:41]} 25. Be3 {[%clk 0:00:20]}  Nxe2+ {[%clk 0:01:35]} 26. Qxe2 {[%clk 0:00:21]}  axb5 {[%clk 0:01:32]} 27. Qxb5 {[%clk 0:00:17]}  Bc6 {[%clk 0:01:19]} 28. Qb6 {[%clk 0:00:15]}  Bxa4 {[%clk 0:01:08]} 29. Rb1 {[%clk 0:00:11]}  Bc6 {[%clk 0:01:08]} 30. Nd4 {[%clk 0:00:10]}  Be4 {[%clk 0:01:08]} 31. Qxc7 {[%clk 0:00:09]}  Bxc7 {[%clk 0:01:09]} 32. Rb3 {[%clk 0:00:08]}  f5 {[%clk 0:01:08]} 33. g3 {[%clk 0:00:08]}  Bd5 {[%clk 0:01:07]} 34. Rbb1 {[%clk 0:00:08]}  Be4 {[%clk 0:01:07]} 35. Rb5 {[%clk 0:00:07]}  g6 {[%clk 0:01:02]} 36. Ra1 {[%clk 0:00:07]}  Ra8 {[%clk 0:01:02]} 37. Rxa8 {[%clk 0:00:04]}  Rxa8 {[%clk 0:01:03]} 38. f3 {[%clk 0:00:04]}  Ra1+ {[%clk 0:00:58]} 39. Kg2 {[%clk 0:00:04]}  Ra2+ {[%clk 0:00:37]} 40. Kg1 {[%clk 0:00:05]}  Bd3 {[%clk 0:00:34]} 41. Rxb7 {[%clk 0:00:04]}  Bxg3 {[%clk 0:00:34]} 42. Bh6 {[%clk 0:00:04]}  Ra8 {[%clk 0:00:32]} 43. Rd7 {[%clk 0:00:04]}  Bc4 {[%clk 0:00:32]} 44. Nc6 {[%clk 0:00:03]}  Be6 {[%clk 0:00:31]} 45. Ne7+ {[%clk 0:00:03]}  Kh8 {[%clk 0:00:31]} 46. Rb7 {[%clk 0:00:04]}  Be5 {[%clk 0:00:31]} 47. f4 {[%clk 0:00:02]}  Bxc3 {[%clk 0:00:30]} 48. Nc6 {[%clk 0:00:02]}  Bd5 {[%clk 0:00:29]} 49. Rc7 {[%clk 0:00:02]}  Bxc6 {[%clk 0:00:25]} 50. Rxc6 {[%clk 0:00:03]}  Bg7 {[%clk 0:00:25]} 51. Bg5 {[%clk 0:00:04]}  h6 {[%clk 0:00:25]} 52. Bh4 {[%clk 0:00:04]}  Kh7 {[%clk 0:00:24]} 53. Rc7 {[%clk 0:00:04]}  Kg8 {[%clk 0:00:25]} 54. Kg2 {[%clk 0:00:04]}  Re8 {[%clk 0:00:25]} 55. Bg3 {[%clk 0:00:04]}  Re4 {[%clk 0:00:26]} 56. Rb7 {[%clk 0:00:04]}  Re6 {[%clk 0:00:24]} 57. Kf3 {[%clk 0:00:04]}  Rc6 {[%clk 0:00:24]} 58. Rb8+ {[%clk 0:00:04]}  Kh7 {[%clk 0:00:21]} 59. Rb7 {[%clk 0:00:04]}  Rc3+ {[%clk 0:00:22]} 60. Kg2 {[%clk 0:00:04]}  Kg8 {[%clk 0:00:20]} 61. Rb8+ {[%clk 0:00:04]}  Kh7 {[%clk 0:00:16]} 62. Rb7 {[%clk 0:00:04]}  f6 {[%clk 0:00:17]} 63. Bf2 {[%clk 0:00:04]}  Rc4 {[%clk 0:00:16]} 64. Kf3 {[%clk 0:00:04]}  g5 {[%clk 0:00:16]} 65. Be3 {[%clk 0:00:04]}  Kg6 {[%clk 0:00:17]} 66. Ke2 {[%clk 0:00:04]}  h5 {[%clk 0:00:13]} 67. Kf3 {[%clk 0:00:03]}  g4+ {[%clk 0:00:12]} 68. Ke2 {[%clk 0:00:03]}  Bh6 {[%clk 0:00:11]} 0-1


[Site "https://www.chess.com"]

[Event "Titled Tuesday Blitz March 01 Early 2022"]
[White "Dauner, Benedikt"]
[Black "Van den Dikkenberg, Erik"]
[WhiteFideId "16225899"]
[BlackFideId "1005880"]
[WhiteElo "2230"]
[BlackElo "2118"]
[Result "1-0"]
[Round "02"]
[TimeControl "180+1"]
[Date "2022.03.01"]
[WhiteClock "0:00:02"]
[BlackClock "0:00:01"]

1. d4 {[%clk 0:03:00]}  Nf6 {[%clk 0:02:59]} 2. Nf3 {[%clk 0:03:00]}  g6 {[%clk 0:02:59]} 3. Nc3 {[%clk 0:02:58]}  Bg7 {[%clk 0:03:00]} 4. e4 {[%clk 0:02:58]}  d6 {[%clk 0:03:00]} 5. Be2 {[%clk 0:02:58]}  O-O {[%clk 0:02:58]} 6. O-O {[%clk 0:02:58]}  Bg4 {[%clk 0:02:54]} 7. Re1 {[%clk 0:02:56]}  Nfd7 {[%clk 0:02:51]} 8. Be3 {[%clk 0:02:48]}  Bxf3 {[%clk 0:02:50]} 9. Bxf3 {[%clk 0:02:48]}  Nc6 {[%clk 0:02:49]} 10. d5 {[%clk 0:02:43]}  Nce5 {[%clk 0:02:47]} 11. Be2 {[%clk 0:02:43]}  Nb6 {[%clk 0:02:42]} 12. Bd4 {[%clk 0:02:29]}  c5 {[%clk 0:02:37]} 13. dxc6 {[%clk 0:02:26]}  bxc6 {[%clk 0:02:36]} 14. f4 {[%clk 0:02:25]}  Ned7 {[%clk 0:02:18]} 15. Bxg7 {[%clk 0:02:24]}  Kxg7 {[%clk 0:02:18]} 16. Bf3 {[%clk 0:02:18]}  e5 {[%clk 0:02:16]} 17. Qxd6 {[%clk 0:02:08]}  Nc4 {[%clk 0:02:13]} 18. Qb4 {[%clk 0:01:56]}  Qb6+ {[%clk 0:01:49]} 19. Qxb6 {[%clk 0:01:56]}  axb6 {[%clk 0:01:49]} 20. b3 {[%clk 0:01:48]}  Na3 {[%clk 0:01:40]} 21. Rac1 {[%clk 0:01:45]}  exf4 {[%clk 0:01:36]} 22. e5 {[%clk 0:01:45]}  Rac8 {[%clk 0:01:33]} 23. e6 {[%clk 0:01:35]}  fxe6 {[%clk 0:01:31]} 24. Rxe6 {[%clk 0:01:36]}  Nc5 {[%clk 0:01:00]} 25. Rxc6 {[%clk 0:01:31]}  Rxc6 {[%clk 0:00:58]} 26. Bxc6 {[%clk 0:01:32]}  Rd8 {[%clk 0:00:56]} 27. Ne4 {[%clk 0:01:21]}  Rd4 {[%clk 0:00:40]} 28. Nxc5 {[%clk 0:00:49]}  bxc5 {[%clk 0:00:39]} 29. Bf3 {[%clk 0:00:38]}  Rd2 {[%clk 0:00:34]} 30. Be4 {[%clk 0:00:38]}  Kf6 {[%clk 0:00:32]} 31. Kf1 {[%clk 0:00:35]}  Ke5 {[%clk 0:00:32]} 32. Bd3 {[%clk 0:00:35]}  Kd4 {[%clk 0:00:30]} 33. Re1 {[%clk 0:00:29]}  Nxc2 {[%clk 0:00:18]} 34. Bxc2 {[%clk 0:00:28]}  Rxc2 {[%clk 0:00:18]} 35. Re2 {[%clk 0:00:27]}  Rc1+ {[%clk 0:00:16]} 36. Kf2 {[%clk 0:00:27]}  Rc3 {[%clk 0:00:16]} 37. Rd2+ {[%clk 0:00:25]}  Ke4 {[%clk 0:00:15]} 38. Re2+ {[%clk 0:00:25]}  Kd4 {[%clk 0:00:15]} 39. Rb2 {[%clk 0:00:22]}  g5 {[%clk 0:00:14]} 40. h3 {[%clk 0:00:21]}  h5 {[%clk 0:00:14]} 41. a4 {[%clk 0:00:21]}  Rc1 {[%clk 0:00:11]} 42. Ra2 {[%clk 0:00:17]}  c4 {[%clk 0:00:09]} 43. bxc4 {[%clk 0:00:17]}  Rxc4 {[%clk 0:00:08]} 44. a5 {[%clk 0:00:17]}  Rc7 {[%clk 0:00:08]} 45. a6 {[%clk 0:00:17]}  Ra7 {[%clk 0:00:09]} 46. Ra4+ {[%clk 0:00:17]}  Ke5 {[%clk 0:00:08]} 47. Ra5+ {[%clk 0:00:17]}  Kf6 {[%clk 0:00:08]} 48. Kf3 {[%clk 0:00:17]}  Kg6 {[%clk 0:00:08]} 49. Ke4 {[%clk 0:00:16]}  Kf6 {[%clk 0:00:06]} 50. Kd5 {[%clk 0:00:15]}  g4 {[%clk 0:00:06]} 51. hxg4 {[%clk 0:00:15]}  hxg4 {[%clk 0:00:06]} 52. Ke4 {[%clk 0:00:09]}  f3 {[%clk 0:00:05]} 53. g3 {[%clk 0:00:03]}  Ke6 {[%clk 0:00:04]} 54. Kf4 {[%clk 0:00:02]}  f2 {[%clk 0:00:04]} 55. Ra1 {[%clk 0:00:03]}  f1=Q+ {[%clk 0:00:03]} 56. Rxf1 {[%clk 0:00:03]}  Rxa6 {[%clk 0:00:03]} 57. Kxg4 {[%clk 0:00:03]}  Ra4+ {[%clk 0:00:03]} 58. Kg5 {[%clk 0:00:03]}  Ra5+ {[%clk 0:00:03]} 59. Kg6 {[%clk 0:00:03]}  Ra3 {[%clk 0:00:02]} 60. g4 {[%clk 0:00:03]}  Re3 {[%clk 0:00:02]} 61. g5 {[%clk 0:00:02]}  Ke7 {[%clk 0:00:02]} 62. Kg7 {[%clk 0:00:03]}  Re5 {[%clk 0:00:02]} 63. g6 {[%clk 0:00:03]}  Ke8 {[%clk 0:00:02]} 64. Rf7 {[%clk 0:00:03]}  Rg5 {[%clk 0:00:02]} 65. Rf3 {[%clk 0:00:02]}  Re5 {[%clk 0:00:01]} 66. Kh7 {[%clk 0:00:02]}  Re4 {[%clk 0:00:02]} 67. Kg8 {[%clk 0:00:02]}  Re7 {[%clk 0:00:01]} 68. g7 {[%clk 0:00:02]}  Re6 {[%clk 0:00:01]} 69. Rh3 {[%clk 0:00:02]}  Re7 {[%clk 0:00:01]} 70. Kh8 {[%clk 0:00:02]} 1-0


[Site "https://www.chess.com"]

[Event "Titled Tuesday Blitz March 01 Early 2022"]
[White "Dobre, Claudiu-Cristian"]
[Black "Karavaeva, Olga"]
[WhiteFideId "1211854"]
[BlackFideId "4124111"]
[WhiteElo "2207"]
[BlackElo "2105"]
[Result "1-0"]
[Round "02"]
[TimeControl "180+1"]
[Date "2022.03.01"]
[WhiteClock "0:00:25"]
[BlackClock "0:00:18"]

1. c4 {[%clk 0:02:55]}  e6 {[%clk 0:02:57]} 2. Nf3 {[%clk 0:02:54]}  d5 {[%clk 0:02:57]} 3. b3 {[%clk 0:02:54]}  c6 {[%clk 0:02:57]} 4. Bb2 {[%clk 0:02:53]}  Nf6 {[%clk 0:02:56]} 5. e3 {[%clk 0:02:53]}  Nbd7 {[%clk 0:02:57]} 6. Nc3 {[%clk 0:02:52]}  Bd6 {[%clk 0:02:56]} 7. Qc2 {[%clk 0:02:49]}  O-O {[%clk 0:02:56]} 8. cxd5 {[%clk 0:02:38]}  exd5 {[%clk 0:02:56]} 9. Nd4 {[%clk 0:02:38]}  Nc5 {[%clk 0:02:47]} 10. Nf5 {[%clk 0:02:32]}  Nce4 {[%clk 0:02:38]} 11. Nxd6 {[%clk 0:01:39]}  Qxd6 {[%clk 0:02:33]} 12. f3 {[%clk 0:01:38]}  Nxc3 {[%clk 0:02:29]} 13. Qxc3 {[%clk 0:01:38]}  Re8 {[%clk 0:02:28]} 14. Kf2 {[%clk 0:01:36]}  Bd7 {[%clk 0:02:23]} 15. Bd3 {[%clk 0:01:31]}  a5 {[%clk 0:02:17]} 16. g4 {[%clk 0:01:27]}  a4 {[%clk 0:02:03]} 17. Rac1 {[%clk 0:01:24]}  axb3 {[%clk 0:02:02]} 18. axb3 {[%clk 0:01:24]}  Ra2 {[%clk 0:02:00]} 19. Bb1 {[%clk 0:01:23]}  Raa8 {[%clk 0:01:51]} 20. h4 {[%clk 0:01:23]}  Re7 {[%clk 0:01:38]} 21. h5 {[%clk 0:01:22]}  h6 {[%clk 0:01:33]} 22. Rcg1 {[%clk 0:01:21]}  Ne8 {[%clk 0:01:17]} 23. g5 {[%clk 0:01:21]}  hxg5 {[%clk 0:01:14]} 24. h6 {[%clk 0:01:14]}  f6 {[%clk 0:01:12]} 25. Qc2 {[%clk 0:01:09]}  f5 {[%clk 0:01:01]} 26. Rxg5 {[%clk 0:01:07]}  g6 {[%clk 0:00:57]} 27. Rxg6+ {[%clk 0:00:32]}  Qxg6 {[%clk 0:00:54]} 28. Rg1 {[%clk 0:00:30]}  Qxg1+ {[%clk 0:00:48]} 29. Kxg1 {[%clk 0:00:30]}  Kh7 {[%clk 0:00:48]} 30. Qc3 {[%clk 0:00:30]}  Kxh6 {[%clk 0:00:42]} 31. Qh8+ {[%clk 0:00:28]}  Kg6 {[%clk 0:00:41]} 32. Qh4 {[%clk 0:00:25]}  Rh7 {[%clk 0:00:36]} 33. Qg4+ {[%clk 0:00:25]}  Kf7 {[%clk 0:00:32]} 34. Bxf5 {[%clk 0:00:25]}  Nf6 {[%clk 0:00:18]} 35. Qg6+ {[%clk 0:00:25]} 1-0


[Site "https://www.chess.com"]

[Event "Titled Tuesday Blitz March 01 Early 2022"]
[White "Dubov, Daniil"]
[Black "Gutenev, Alexander"]
[WhiteFideId "24126055"]
[BlackFideId "4195540"]
[WhiteElo "3013"]
[BlackElo "2658"]
[Result "1-0"]
[Round "02"]
[TimeControl "180+1"]
[Date "2022.03.01"]
[WhiteClock "0:01:17"]
[BlackClock "0:01:17"]

1. d4 {[%clk 0:03:00]}  Nf6 {[%clk 0:02:59]} 2. Nf3 {[%clk 0:03:00]}  g6 {[%clk 0:02:58]} 3. c4 {[%clk 0:02:55]}  Bg7 {[%clk 0:02:54]} 4. Nc3 {[%clk 0:02:56]}  d5 {[%clk 0:02:54]} 5. cxd5 {[%clk 0:02:53]}  Nxd5 {[%clk 0:02:53]} 6. e4 {[%clk 0:02:53]}  Nxc3 {[%clk 0:02:53]} 7. bxc3 {[%clk 0:02:54]}  c5 {[%clk 0:02:53]} 8. Bb5+ {[%clk 0:02:54]}  Bd7 {[%clk 0:02:44]} 9. Rb1 {[%clk 0:02:52]}  O-O {[%clk 0:02:42]} 10. O-O {[%clk 0:02:50]}  Bg4 {[%clk 0:02:34]} 11. Be3 {[%clk 0:02:47]}  Bxf3 {[%clk 0:02:29]} 12. Qxf3 {[%clk 0:02:46]}  cxd4 {[%clk 0:02:29]} 13. cxd4 {[%clk 0:02:46]}  Bxd4 {[%clk 0:02:25]} 14. Rfd1 {[%clk 0:02:41]}  e5 {[%clk 0:02:25]} 15. Bh6 {[%clk 0:02:40]}  Nc6 {[%clk 0:02:13]} 16. Bxc6 {[%clk 0:02:35]}  bxc6 {[%clk 0:02:12]} 17. Rb7 {[%clk 0:02:30]}  Bxf2+ {[%clk 0:02:03]} 18. Kf1 {[%clk 0:02:22]}  Bd4 {[%clk 0:02:00]} 19. g3 {[%clk 0:02:00]}  Qc8 {[%clk 0:01:46]} 20. Kg2 {[%clk 0:01:58]}  Qe6 {[%clk 0:01:36]} 21. Rf1 {[%clk 0:01:22]}  Rab8 {[%clk 0:01:26]} 22. Qxf7+ {[%clk 0:01:19]}  Qxf7 {[%clk 0:01:17]} 23. Rfxf7 {[%clk 0:01:17]} 1-0


[Site "https://www.chess.com"]

[Event "Titled Tuesday Blitz March 01 Early 2022"]
[White "Dziththauly, Ramadhan"]
[Black "Ponkratov, Pavel"]
[WhiteFideId "7105525"]
[BlackFideId "4157800"]
[WhiteElo "2613"]
[BlackElo "2487"]
[Result "0-1"]
[Round "02"]
[TimeControl "180+1"]
[Date "2022.03.01"]
[WhiteClock "0:00:02"]
[BlackClock "0:00:33"]

1. d4 {[%clk 0:02:58]}  Nf6 {[%clk 0:02:59]} 2. c4 {[%clk 0:02:52]}  c5 {[%clk 0:02:59]} 3. d5 {[%clk 0:02:52]}  e5 {[%clk 0:02:59]} 4. Nc3 {[%clk 0:02:52]}  d6 {[%clk 0:02:58]} 5. e4 {[%clk 0:02:50]}  h5 {[%clk 0:02:56]} 6. f3 {[%clk 0:02:50]}  h4 {[%clk 0:02:57]} 7. Be3 {[%clk 0:02:48]}  g6 {[%clk 0:02:57]} 8. Qd2 {[%clk 0:02:48]}  a6 {[%clk 0:02:54]} 9. a4 {[%clk 0:02:47]}  Nh5 {[%clk 0:02:49]} 10. Nge2 {[%clk 0:02:46]}  b6 {[%clk 0:02:46]} 11. O-O-O {[%clk 0:02:38]}  Ra7 {[%clk 0:02:43]} 12. Kb1 {[%clk 0:02:35]}  f5 {[%clk 0:02:40]} 13. Nc1 {[%clk 0:02:34]}  Rf7 {[%clk 0:02:39]} 14. Be2 {[%clk 0:02:31]}  Nd7 {[%clk 0:02:19]} 15. Nd3 {[%clk 0:02:23]}  Ndf6 {[%clk 0:02:15]} 16. Bg5 {[%clk 0:02:07]}  Be7 {[%clk 0:02:08]} 17. Be3 {[%clk 0:01:51]}  Bd7 {[%clk 0:02:02]} 18. b4 {[%clk 0:01:43]}  O-O {[%clk 0:01:55]} 19. b5 {[%clk 0:01:42]}  axb5 {[%clk 0:01:36]} 20. cxb5 {[%clk 0:01:42]}  h3 {[%clk 0:01:36]} 21. g3 {[%clk 0:01:36]}  fxe4 {[%clk 0:01:36]} 22. fxe4 {[%clk 0:01:35]}  Ng4 {[%clk 0:01:36]} 23. Bxg4 {[%clk 0:01:17]}  Bxg4 {[%clk 0:01:36]} 24. Rde1 {[%clk 0:01:17]}  Bf3 {[%clk 0:01:34]} 25. Rhf1 {[%clk 0:01:15]}  Bg2 {[%clk 0:01:31]} 26. Rxf7 {[%clk 0:01:11]}  Rxf7 {[%clk 0:01:32]} 27. Nb2 {[%clk 0:01:09]}  Nf6 {[%clk 0:01:32]} 28. Bg1 {[%clk 0:01:08]}  Ng4 {[%clk 0:01:30]} 29. Nc4 {[%clk 0:01:08]}  Bg5 {[%clk 0:01:30]} 30. Qc2 {[%clk 0:00:51]}  Bf1 {[%clk 0:01:27]} 31. Nd2 {[%clk 0:00:46]}  Bxd2 {[%clk 0:01:12]} 32. Qxd2 {[%clk 0:00:47]}  Kg7 {[%clk 0:01:12]} 33. Nd1 {[%clk 0:00:43]}  Qa8 {[%clk 0:01:09]} 34. Qc2 {[%clk 0:00:39]}  c4 {[%clk 0:01:06]} 35. Kc1 {[%clk 0:00:34]}  Bd3 {[%clk 0:01:06]} 36. Qa2 {[%clk 0:00:33]}  Qa5 {[%clk 0:01:06]} 37. Re3 {[%clk 0:00:20]}  Rf1 {[%clk 0:01:05]} 38. Rxd3 {[%clk 0:00:14]}  cxd3 {[%clk 0:01:05]} 39. Qc4 {[%clk 0:00:11]}  Kh6 {[%clk 0:01:04]} 40. Qxd3 {[%clk 0:00:10]}  Rxg1 {[%clk 0:01:03]} 41. Qf3 {[%clk 0:00:11]}  Qxa4 {[%clk 0:00:54]} 42. Qxg4 {[%clk 0:00:05]}  Qc4+ {[%clk 0:00:47]} 43. Kd2 {[%clk 0:00:03]}  Qd4+ {[%clk 0:00:45]} 44. Kc2 {[%clk 0:00:01]}  Rg2+ {[%clk 0:00:43]} 45. Kb3 {[%clk 0:00:02]}  Qd3+ {[%clk 0:00:38]} 46. Kb4 {[%clk 0:00:02]}  Qb1+ {[%clk 0:00:35]} 47. Kc4 {[%clk 0:00:01]}  Qa2+ {[%clk 0:00:33]} 48. Kd3 {[%clk 0:00:01]}  Qc2+ {[%clk 0:00:32]} 49. Ke3 {[%clk 0:00:01]}  Qd2+ {[%clk 0:00:33]} 50. Kf3 {[%clk 0:00:02]}  Qe2# {[%clk 0:00:33]} 0-1


[Site "https://www.chess.com"]